bitfinex/quotes_SOLUSD_20240702
["timestamp","ask_amount","ask_price","bid_price","bid_amount"]
[1719907213427,20.0,147.6,147.55,12.42]
[1719907213628,32.42,147.6,147.55,12.42]
[1719907213948,33.1616782,147.6,147.55,12.42]
[1719907214335,12.42,147.59,147.54,100.0]
[1719907214736,12.42,147.59,147.54,112.42]
[1719907215050,20.0,147.6,147.54,12.42]
[1719907215244,12.42,147.59,147.54,12.42]
[1719907215443,12.42,147.59,147.55,0.63121432]
[1719907215646,28.366,147.61,147.55,1.03461394]
[1719907215844,21.5913,147.61,147.54,200.0]
[1719907216039,21.5913,147.61,147.56,12.42]
[1719907216248,34.0113,147.61,147.56,12.42]
[1719907216752,12.42,147.6,147.55,12.42]
[1719907217666,28.3659,147.61,147.55,12.42]
[1719907217845,12.42,147.6,147.55,12.42]
[1719907219247,21.5913,147.61,147.56,12.42]
[1719907219248,34.0113,147.61,147.56,12.42]
[1719907219854,12.42,147.6,147.55,12.42]
[1719907221259,21.5913,147.61,147.55,12.42]
[1719907221556,12.42,147.6,147.55,12.42]
[1719907223250,13.1616782,147.6,147.52,240.74]
[1719907223455,12.42,147.59,147.54,12.42]
[1719907223838,12.42,147.6,147.55,12.42]
[1719907229158,12.42,147.6,147.56,100.0]
[1719907230679,0.7416782,147.64,147.56,240.74]
[1719907230981,12.42,147.63,147.58,12.42]
[1719907232745,12.42,147.62,147.57,12.42]
[1719907233145,12.42,147.62,147.56,100.0]
[1719907233146,20.7416782,147.64,147.58,12.42]
[1719907233355,12.42,147.63,147.56,100.0]
[1719907233561,12.42,147.62,147.57,12.42]
[1719907234352,27.5149782,147.64,147.56,112.42]
[1719907234553,12.42,147.62,147.57,12.42]
[1719907235554,12.42,147.62,147.56,100.0]
[1719907235753,12.42,147.62,147.54,240.74]
[1719907237312,12.42,147.62,147.57,12.42]
[1719907237449,27.5149782,147.64,147.57,12.42]
[1719907237450,20.0,147.64,147.58,40.74]
[1719907237651,22.5906537,147.65,147.61,12.42]
[1719907237857,0.7416782,147.69,147.62,100.0]
[1719907237858,30.4019782,147.69,147.62,100.0]
[1719907238068,30.4019782,147.69,147.62,112.42]
[1719907238266,12.42,147.67,147.62,112.42]
[1719907238972,12.42,147.66,147.62,100.0]
[1719907239145,22.8893,147.69,147.62,200.0]
[1719907239350,22.8893,147.69,147.64,12.42]
[1719907239752,35.3093,147.69,147.64,12.42]
[1719907239950,0.7416782,147.71,147.65,12.42]
[1719907240161,12.42,147.71,147.65,12.42]
[1719907240373,7.5112782,147.72,147.66,12.42]
[1719907240672,20.0,147.7,147.66,12.42]
[1719907240851,32.42,147.71,147.66,12.42]
[1719907241056,32.42,147.71,147.64,200.0]
[1719907241057,32.42,147.71,147.65,12.42]
[1719907241260,20.0,147.71,147.65,12.42]
[1719907241473,32.42,147.71,147.65,12.42]
[1719907241985,22.2327,147.73,147.67,12.42]
[1719907242180,22.2327,147.73,147.68,12.42]
[1719907242181,15.4636,147.73,147.68,12.42]
[1719907242475,27.8836,147.73,147.68,12.42]
[1719907243063,34.6528,147.73,147.68,12.42]
[1719907244270,6.7696,147.72,147.67,12.42]
[1719907244575,12.42,147.71,147.66,12.42]
[1719907244809,19.1901,147.71,147.66,12.42]
[1719907244979,12.42,147.7,147.65,12.42]
[1719907245491,0.7416782,147.7,147.61,100.0]
[1719907245660,12.42,147.68,147.61,100.0]
[1719907246165,12.42,147.68,147.63,12.42]
[1719907246379,19.1909,147.69,147.64,12.42]
[1719907246563,6.3856,147.7,147.64,12.42]
[1719907246763,12.42,147.69,147.64,12.42]
[1719907248377,13.8977782,147.7,147.64,12.42]
[1719907248577,12.42,147.69,147.64,12.42]
[1719907249488,6.3856,147.7,147.65,12.42]
[1719907249673,18.8056,147.7,147.65,12.42]
[1719907249874,6.3856,147.7,147.65,12.42]
[1719907250075,18.8056,147.7,147.65,12.42]
[1719907250275,18.8056,147.7,147.63,100.0]
[1719907250276,15.4636,147.73,147.68,12.42]
[1719907250482,27.8836,147.73,147.68,12.42]
[1719907250679,12.42,147.72,147.67,12.42]
[1719907250873,27.8836,147.73,147.68,12.42]
[1719907251270,12.42,147.72,147.66,140.74]
[1719907251593,28.6252782,147.73,147.67,12.42]
[1719907252012,35.3946782,147.73,147.67,12.42]
[1719907253390,28.6252782,147.73,147.67,12.42]
[1719907253571,28.6252782,147.73,147.66,100.0]
[1719907253572,12.42,147.72,147.66,100.0]
[1719907253771,12.42,147.72,147.67,12.42]
[1719907254287,16.2052782,147.73,147.67,12.42]
[1719907254491,27.8836,147.73,147.67,12.42]
[1719907255893,15.4636,147.73,147.69,12.42]
[1719907256087,0.8263985,147.74,147.7,12.42]
[1719907256278,0.7416782,147.73,147.66,156.2961]
[1719907256478,0.7416782,147.73,147.69,12.42]
[1719907256984,0.7416782,147.73,147.68,12.42]
[1719907257379,33.2463985,147.74,147.68,12.42]
[1719907257585,40.0149985,147.74,147.68,12.42]
[1719907258274,0.7416782,147.73,147.68,12.42]
[1719907259298,13.1616782,147.73,147.68,12.42]
[1719907259669,20.8263985,147.74,147.68,12.42]
[1719907259900,33.9880767,147.74,147.69,12.42]
[1719907260070,33.2463985,147.74,147.69,12.42]
[1719907260696,13.1616782,147.73,147.66,156.2961]
[1719907260995,0.7416782,147.73,147.67,12.42]
[1719907261204,12.42,147.72,147.67,12.42]
[1719907261386,12.42,147.72,147.66,40.74]
[1719907261792,0.7416782,147.73,147.67,12.42]
[1719907261980,0.7416782,147.73,147.68,12.42]
[1719907262699,28.3367767,147.74,147.68,12.42]
[1719907263295,21.5680767,147.74,147.68,12.42]
[1719907263474,0.8263985,147.74,147.69,12.42]
[1719907263676,13.2463985,147.74,147.69,12.42]
[1719907263888,12.42,147.73,147.68,12.42]
[1719907264290,0.8263985,147.74,147.68,240.74]
[1719907264598,0.8263985,147.74,147.72,12.42]
[1719907265075,0.8263985,147.74,147.7,100.0]
[1719907265275,0.8263985,147.74,147.71,12.42]
[1719907265489,0.8263985,147.74,147.7,200.0]
[1719907265490,0.8263985,147.74,147.72,12.42]
[1719907267372,0.8263985,147.74,147.73,12.42]
[1719907267478,0.8263985,147.74,147.72,12.42]
[1719907267684,0.8263985,147.74,147.7,212.42]
[1719907268398,0.8263985,147.74,147.72,100.0]
[1719907268592,0.8263985,147.74,147.72,112.42]
[1719907268791,0.8263985,147.74,147.72,12.42]
[1719907268994,0.8263985,147.74,147.71,12.42]
[1719907270584,0.8263985,147.74,147.7,253.16]
[1719907271710,0.8263985,147.74,147.7,12.42]
[1719907271900,13.2463985,147.74,147.69,12.42]
[1719907272095,13.2463985,147.74,147.68,200.0]
[1719907272299,12.42,147.73,147.68,112.42]
[1719907273231,0.8263985,147.74,147.68,212.42]
[1719907273433,0.8263985,147.74,147.7,112.42]
[1719907273616,13.2463985,147.74,147.7,100.0]
[1719907275725,12.42,147.73,147.68,112.42]
[1719907275936,12.42,147.73,147.68,212.42]
[1719907276237,13.2463985,147.74,147.69,12.42]
[1719907276608,13.2463985,147.74,147.68,200.0]
[1719907276609,12.42,147.73,147.68,212.42]
[1719907276915,13.2463985,147.74,147.69,32.42]
[1719907280025,0.8263985,147.74,147.71,100.0]
[1719907281415,0.8263985,147.74,147.7,12.42]
[1719907281735,0.8263985,147.74,147.69,32.42]
[1719907282235,13.2463985,147.74,147.69,32.42]
[1719907282404,13.2463985,147.74,147.69,132.42]
[1719907283509,13.2463985,147.74,147.69,120.0]
[1719907283714,13.2463985,147.74,147.69,132.42]
[1719907284042,13.2463985,147.74,147.69,120.0]
[1719907284334,13.2463985,147.74,147.69,132.42]
[1719907285925,0.8263985,147.74,147.69,132.42]
[1719907286109,13.2463985,147.74,147.69,20.0]
[1719907286300,12.42,147.73,147.68,12.42]
[1719907286505,12.42,147.73,147.67,112.42]
[1719907287434,12.42,147.73,147.68,12.42]
[1719907288012,12.42,147.73,147.69,1.35389499]
[1719907289208,7.0535985,147.74,147.69,1.35389499]
[1719907289414,12.42,147.73,147.69,1.35389499]
[1719907290706,7.0535985,147.74,147.69,101.35389499]
[1719907290911,19.4735985,147.74,147.69,112.42]
[1719907291311,19.4735985,147.74,147.69,100.0]
[1719907291524,12.42,147.73,147.69,100.0]
[1719907294215,12.42,147.73,147.66,200.0]
[1719907294420,27.4737,147.72,147.67,32.42]
[1719907295350,27.4737,147.72,147.67,20.0]
[1719907295659,12.42,147.71,147.66,200.0]
[1719907295811,12.42,147.69,147.65,40.74]
[1719907296123,12.42,147.68,147.63,12.42]
[1719907296325,12.42,147.68,147.62,140.74]
[1719907296737,12.42,147.68,147.63,12.42]
[1719907297448,12.42,147.67,147.62,153.16]
[1719907297815,12.42,147.68,147.63,12.42]
[1719907298819,12.42,147.68,147.62,140.74]
[1719907299020,12.42,147.68,147.63,12.42]
[1719907300138,12.42,147.67,147.62,153.16]
[1719907302227,12.42,147.67,147.62,53.16]
[1719907302618,7.1266782,147.69,147.62,40.74]
[1719907303119,7.1266782,147.69,147.62,53.16]
[1719907303325,7.1266782,147.69,147.62,40.74]
[1719907303520,7.1266782,147.69,147.61,112.42]
[1719907303732,7.1266782,147.69,147.62,20.0]
[1719907303931,13.8975782,147.69,147.6,140.74]
[1719907304125,13.8975782,147.69,147.61,0.92588403]
[1719907304325,13.8975782,147.69,147.61,33.34588403]
[1719907305748,7.1266782,147.69,147.62,112.42]
[1719907305932,7.1266782,147.69,147.63,0.49518277]
[1719907306133,12.42,147.67,147.63,0.49518277]
[1719907306333,12.42,147.67,147.62,112.42]
[1719907306833,12.42,147.66,147.62,100.0]
[1719907307035,12.42,147.66,147.62,112.42]
[1719907307221,12.42,147.66,147.62,100.0]
[1719907309144,13.8976782,147.69,147.62,100.0]
[1719907309328,7.1266782,147.69,147.62,100.0]
[1719907309648,13.8976782,147.69,147.62,100.0]
[1719907310051,6.7714,147.68,147.61,32.42]
[1719907310237,13.8977782,147.69,147.61,32.42]
[1719907310749,13.8977782,147.69,147.62,0.55299242]
[1719907310953,13.8977782,147.69,147.61,32.42]
[1719907311343,6.7714,147.68,147.61,12.42]
[1719907311531,7.5137782,147.67,147.6,12.42]
[1719907312458,0.7416782,147.66,147.6,12.42]
[1719907313957,0.7416782,147.66,147.58,200.0]
[1719907314155,0.7416782,147.66,147.59,20.0]
[1719907314156,12.42,147.63,147.59,20.0]
[1719907314839,12.42,147.63,147.58,12.42]
[1719907314840,12.42,147.62,147.57,100.0]
[1719907315044,12.42,147.62,147.57,112.42]
[1719907315351,12.42,147.61,147.56,12.42]
[1719907315738,12.42,147.61,147.55,15.1252]
[1719907315941,6.2882,147.64,147.56,12.42]
[1719907316250,12.42,147.61,147.55,15.1252]
[1719907316429,12.42,147.61,147.56,32.42]
[1719907317251,0.7416782,147.63,147.56,32.42]
[1719907317448,12.42,147.61,147.56,32.42]
[1719907317651,12.42,147.63,147.58,12.42]
[1719907317857,6.2882,147.64,147.58,12.42]
[1719907318039,6.2882,147.64,147.6,12.42]
[1719907319051,27.574,147.65,147.6,12.42]
[1719907319230,6.6666,147.68,147.61,113.7746137]
[1719907319429,6.6666,147.68,147.59,40.74]
[1719907319430,12.42,147.65,147.59,40.74]
[1719907320161,12.42,147.64,147.59,40.74]
[1719907320530,12.42,147.65,147.59,40.74]
[1719907320959,12.42,147.65,147.58,100.0]
[1719907320960,12.42,147.64,147.58,100.0]
[1719907321167,12.42,147.64,147.59,12.42]
[1719907322455,12.42,147.64,147.58,140.74]
[1719907324443,0.7416782,147.66,147.58,140.74]
[1719907324763,12.42,147.64,147.58,140.74]
[1719907324957,12.42,147.65,147.59,100.0]
[1719907325166,12.42,147.65,147.6,140.74]
[1719907325459,7.4082782,147.68,147.63,12.42]
[1719907325460,12.42,147.67,147.63,12.42]
[1719907326345,6.6666,147.68,147.63,12.42]
[1719907326544,12.42,147.67,147.63,12.42]
[1719907327245,6.6666,147.68,147.64,0.82032642]
[1719907327458,12.42,147.67,147.65,0.82027086]
[1719907327660,12.42,147.67,147.63,12.42]
[1719907327853,12.42,147.67,147.62,200.0]
[1719907328048,12.42,147.67,147.62,12.42]
[1719907328363,12.42,147.66,147.61,12.42]
[1719907329069,12.42,147.65,147.6,253.16]
[1719907329255,12.42,147.65,147.59,40.74]
[1719907329566,12.42,147.65,147.6,12.42]
[1719907333263,12.42,147.64,147.59,53.16]
[1719907336774,12.42,147.64,147.59,40.74]
[1719907336975,12.42,147.61,147.59,1.35468695]
[1719907337269,12.42,147.61,147.56,13.77484896]
[1719907339146,12.42,147.62,147.57,12.42]
[1719907341777,6.6512,147.63,147.58,212.42]
[1719907342073,28.5494,147.64,147.59,12.42]
[1719907342256,16.1294,147.64,147.6,12.42]
[1719907342450,16.1294,147.64,147.61,0.90387771]
[1719907345177,16.1294,147.64,147.59,0.90387771]
[1719907345385,16.1294,147.64,147.6,1.35462609]
[1719907345567,16.1294,147.64,147.61,1.35462535]
[1719907346263,28.5494,147.64,147.61,1.35462535]
[1719907346668,28.5494,147.64,147.62,1.35453358]
[1719907346870,16.1294,147.64,147.59,13.77462562]
[1719907347973,16.1294,147.64,147.59,12.42]
[1719907348166,12.42,147.65,147.6,113.09749573]
[1719907348365,6.5365,147.67,147.61,0.67744983]
[1719907348563,13.3084,147.67,147.61,13.09744983]
[1719907348775,12.42,147.65,147.6,212.42]
[1719907349083,12.42,147.65,147.6,100.0]
[1719907349262,12.42,147.65,147.6,112.42]
[1719907349465,12.42,147.65,147.6,100.0]
[1719907349771,12.42,147.65,147.6,12.42]
[1719907352165,14.0499782,147.67,147.6,12.42]
[1719907352366,12.42,147.65,147.58,240.74]
[1719907352663,12.42,147.65,147.6,12.42]
[1719907356887,14.0499782,147.67,147.59,12.42]
[1719907357187,12.42,147.63,147.58,253.16]
[1719907357403,12.42,147.63,147.59,20.0]
[1719907357984,12.42,147.64,147.59,32.42]
[1719907358182,12.42,147.64,147.59,20.0]
[1719907358567,7.2781782,147.67,147.59,120.0]
[1719907358767,12.42,147.64,147.59,120.0]
[1719907358966,12.42,147.64,147.59,132.42]
[1719907360366,12.42,147.65,147.6,12.42]
[1719907362487,7.2781782,147.67,147.6,112.42]
[1719907362794,12.42,147.64,147.59,32.42]
[1719907363173,12.42,147.64,147.59,20.0]
[1719907363381,12.42,147.64,147.58,32.42]
[1719907364379,12.42,147.64,147.58,20.0]
[1719907364565,12.42,147.64,147.59,1.35477617]
[1719907364771,12.42,147.63,147.59,1.35477617]
[1719907367396,0.7416782,147.65,147.59,1.35477617]
[1719907367591,12.42,147.63,147.59,1.35477617]
[1719907368294,12.42,147.64,147.59,1.35477617]
[1719907369799,12.42,147.64,147.58,132.42]
[1719907370492,12.42,147.64,147.59,0.38886593]
[1719907370995,0.7416782,147.66,147.59,12.80886593]
[1719907371178,14.0500782,147.67,147.59,0.38886593]
[1719907371379,12.42,147.64,147.59,12.80886593]
[1719907371591,0.7416782,147.67,147.6,56.112]
[1719907371824,7.06189772,147.7,147.67,100.0]
[1719907371985,13.2463985,147.74,147.69,12.42]
[1719907372304,12.42,147.72,147.66,156.112]
[1719907372479,12.42,147.72,147.67,32.42]
[1719907373897,12.42,147.71,147.67,20.0]
[1719907374098,12.42,147.71,147.66,156.112]
[1719907374309,12.42,147.71,147.66,168.532]
[1719907374478,0.7416782,147.73,147.66,168.532]
[1719907374678,0.7416782,147.73,147.64,6.3487]
[1719907374679,0.8263985,147.74,147.72,16.0926]
[1719907374881,12.42,147.8,147.74,100.0]
[1719907375099,5.56505727,147.83,147.74,100.0]
[1719907375100,0.7416782,147.82,147.74,100.0]
[1719907375300,12.42,147.81,147.74,100.0]
[1719907376099,0.7416782,147.83,147.74,140.74]
[1719907376288,12.42,147.82,147.77,12.42]
[1719907376689,13.1616782,147.83,147.77,12.42]
[1719907376889,12.42,147.82,147.77,12.42]
[1719907377097,12.42,147.82,147.76,12.42]
[1719907378089,12.42,147.81,147.76,12.42]
[1719907378506,12.42,147.81,147.75,6.421]
[1719907378678,12.42,147.81,147.77,1.35169968]
[1719907379181,12.42,147.82,147.77,13.77169968]
[1719907379597,19.9265782,147.82,147.77,13.77169968]
[1719907379780,19.9265782,147.82,147.77,12.42]
[1719907379982,12.42,147.81,147.76,12.42]
[1719907380378,0.7416782,147.85,147.79,12.42]
[1719907380584,6.7649,147.82,147.75,6.421]
[1719907380786,0.7416782,147.85,147.77,100.0]
[1719907380987,0.7416782,147.85,147.77,12.42]
[1719907380988,12.42,147.83,147.77,12.42]
[1719907381398,19.1846,147.83,147.77,12.42]
[1719907381607,13.1616782,147.82,147.77,12.42]
[1719907381794,12.42,147.82,147.77,12.42]
[1719907382299,6.7646,147.83,147.76,112.42]
[1719907382501,13.1616782,147.82,147.77,12.42]
[1719907382799,7.06043386,147.87,147.82,200.0]
[1719907382998,0.0402304,147.88,147.84,12.42]
[1719907383200,0.0402304,147.88,147.85,12.42]
[1719907383399,0.0402304,147.88,147.84,112.42]
[1719907383598,0.0402304,147.88,147.82,140.74]
[1719907383898,0.0402304,147.88,147.82,40.74]
[1719907384103,12.4602304,147.88,147.81,100.0]
[1719907384307,0.0402304,147.88,147.82,32.42]
[1719907384514,12.4602304,147.88,147.82,32.42]
[1719907384716,12.4602304,147.88,147.84,12.42]
[1719907384717,0.0402304,147.88,147.84,12.42]
[1719907384890,0.0402304,147.88,147.86,12.42]
[1719907385088,0.0402304,147.88,147.83,100.0]
[1719907385288,0.0402304,147.88,147.86,12.42]
[1719907385498,0.0402304,147.88,147.83,12.42]
[1719907385698,0.0402304,147.88,147.82,20.0]
[1719907386593,0.0402304,147.88,147.83,0.69601285]
[1719907387522,0.0402304,147.88,147.82,220.0]
[1719907388599,0.0402304,147.88,147.82,200.0]
[1719907389218,0.0402304,147.88,147.82,100.0]
[1719907389908,0.0402304,147.88,147.81,40.74]
[1719907390225,0.0402304,147.88,147.82,20.0]
[1719907390802,0.0402304,147.88,147.81,20.0]
[1719907391184,0.0402304,147.88,147.82,100.0]
[1719907393824,22.8191304,147.88,147.8,100.0]
[1719907393997,22.8191304,147.88,147.78,287.4258]
[1719907394895,6.7627,147.87,147.78,287.4258]
[1719907395295,22.8191304,147.88,147.78,287.4258]
[1719907395517,22.8191304,147.88,147.79,20.0]
[1719907396219,6.7627,147.87,147.79,20.0]
[1719907397099,29.5814304,147.88,147.79,20.0]
[1719907397720,6.7627,147.87,147.79,20.0]
[1719907397895,22.8191304,147.88,147.78,140.74]
[1719907397896,6.7631,147.86,147.78,140.74]
[1719907398090,6.7631,147.86,147.76,100.0]
[1719907398091,22.8191304,147.88,147.76,100.0]
[1719907398318,20.0,147.87,147.76,240.74]
[1719907398495,6.7632,147.86,147.76,240.74]
[1719907399307,26.7627,147.87,147.76,240.74]
[1719907399513,20.0,147.87,147.79,100.0]
[1719907400919,26.7627,147.87,147.79,100.0]
[1719907403717,6.7632,147.86,147.79,100.0]
[1719907404508,6.7636,147.85,147.77,260.74]
[1719907404696,6.7636,147.85,147.77,160.74]
[1719907405427,6.7641,147.84,147.77,120.0]
[1719907405715,6.7648,147.83,147.77,100.0]
[1719907407017,51.71022679,147.87,147.77,100.0]
[1719907407018,6.7636,147.85,147.77,100.0]
[1719907407214,6.7641,147.84,147.77,100.0]
[1719907407801,12.33,147.83,147.78,12.33]
[1719907408301,19.095,147.82,147.75,200.0]
[1719907408740,19.095,147.82,147.76,12.33]
[1719907409225,12.33,147.82,147.76,12.33]
[1719907409401,12.33,147.82,147.75,200.0]
[1719907409402,12.33,147.82,147.77,12.33]
[1719907409602,12.33,147.82,147.76,12.33]
[1719907409805,12.33,147.82,147.75,200.0]
[1719907410002,12.33,147.82,147.76,12.33]
[1719907411315,12.33,147.82,147.75,100.0]
[1719907411519,12.33,147.8,147.75,100.0]
[1719907411826,12.33,147.8,147.75,112.33]
[1719907412713,22.4904,147.81,147.75,112.33]
[1719907412903,34.8204,147.81,147.75,112.33]
[1719907413098,41.5858,147.81,147.75,112.33]
[1719907413323,34.8204,147.81,147.75,12.33]
[1719907413707,12.33,147.8,147.73,100.0]
[1719907413913,12.33,147.79,147.74,12.33]
[1719907414118,12.33,147.79,147.73,100.0]
[1719907414314,12.33,147.79,147.74,12.33]
[1719907414609,19.0963,147.79,147.71,240.74]
[1719907414815,12.33,147.79,147.73,12.33]
[1719907415122,6.766,147.8,147.71,240.74]
[1719907415322,12.33,147.76,147.67,146.25017895]
[1719907415626,12.33,147.74,147.69,12.33]
[1719907415814,12.33,147.74,147.67,100.0]
[1719907416127,12.33,147.74,147.69,12.33]
[1719907416324,12.33,147.74,147.67,100.0]
[1719907416511,12.33,147.74,147.69,12.33]
[1719907418313,12.33,147.74,147.68,12.33]
[1719907419027,12.33,147.73,147.67,100.0]
[1719907419246,12.33,147.72,147.65,140.74]
[1719907419549,12.33,147.72,147.65,100.0]
[1719907419721,12.33,147.71,147.63,140.72]
[1719907419910,12.33,147.71,147.65,12.33]
[1719907420825,19.1,147.71,147.63,140.72]
[1719907421008,12.33,147.7,147.65,12.33]
[1719907421429,12.33,147.71,147.65,12.33]
[1719907422135,12.33,147.7,147.65,12.33]
[1719907422710,12.33,147.7,147.63,140.72]
[1719907422910,12.33,147.68,147.6,256.2903]
[1719907423222,12.33,147.68,147.63,12.33]
[1719907424338,6.7708,147.7,147.63,12.33]
[1719907424339,12.33,147.69,147.63,12.33]
[1719907425030,12.33,147.68,147.63,12.33]
[1719907426129,12.33,147.67,147.6,115.5703]
[1719907426324,12.33,147.66,147.6,15.5703]
[1719907426634,12.33,147.66,147.61,12.33]
[1719907426930,12.33,147.66,147.59,6.0112]
[1719907427145,12.33,147.66,147.61,12.33]
[1719907427309,12.33,147.66,147.6,112.33]
[1719907428032,12.33,147.66,147.6,12.33]
[1719907428621,12.33,147.66,147.58,246.08915939]
[1719907428822,12.33,147.66,147.61,12.33]
[1719907429121,6.7722,147.67,147.61,12.33]
[1719907429323,12.33,147.66,147.6,100.0]
[1719907429654,12.33,147.66,147.61,12.33]
[1719907431818,12.33,147.66,147.6,112.33]
[1719907432821,22.3866,147.68,147.61,12.33]
[1719907433144,19.1018,147.67,147.61,12.33]
[1719907433627,12.33,147.66,147.61,12.33]
[1719907433823,12.33,147.66,147.62,0.68843677]
[1719907434847,12.33,147.66,147.61,12.33]
[1719907435031,19.1023,147.66,147.61,12.33]
[1719907435232,19.1023,147.66,147.6,112.33]
[1719907436024,19.1023,147.66,147.6,12.33]
[1719907436225,12.33,147.65,147.6,12.33]
[1719907436438,12.33,147.65,147.58,246.08915939]
[1719907436640,12.33,147.65,147.6,12.33]
[1719907439440,12.33,147.64,147.59,12.33]
[1719907440248,12.33,147.64,147.6,100.0]
[1719907440435,22.3868,147.68,147.62,12.33]
[1719907440636,19.1019,147.67,147.6,100.0]
[1719907440823,12.33,147.66,147.61,12.33]
[1719907441624,12.33,147.66,147.55,26.3883]
[1719907441625,19.1045,147.62,147.54,100.0]
[1719907441826,6.7748,147.61,147.54,12.33]
[1719907442140,6.7752,147.6,147.54,12.33]
[1719907442333,32.92876438,147.67,147.53,26.74749654]
[1719907442541,28.9679,147.67,147.62,12.33]
[1719907442726,20.0,147.66,147.62,12.33]
[1719907442929,20.0,147.66,147.61,12.33]
[1719907443127,39.1024,147.66,147.61,12.33]
[1719907443727,12.33,147.65,147.6,12.33]
[1719907444328,19.1028,147.65,147.6,12.33]
[1719907444529,19.1034,147.64,147.59,100.0]
[1719907445336,19.1037,147.63,147.57,100.0]
[1719907445548,12.33,147.63,147.57,112.33]
[1719907445742,12.33,147.62,147.57,100.0]
[1719907446533,7.05978595,147.67,147.66,200.0]
[1719907446751,15.8565,147.72,147.68,100.0]
[1719907446952,12.33,147.75,147.7,100.0]
[1719907446953,6.7682,147.75,147.7,100.0]
[1719907447850,34.5017,147.76,147.7,100.0]
[1719907449042,6.7683,147.75,147.7,112.33]
[1719907449235,6.7686,147.74,147.7,112.33]
[1719907449434,6.7686,147.74,147.69,12.33]
[1719907449839,6.7686,147.74,147.68,100.0]
[1719907450238,6.7697,147.72,147.68,100.0]
[1719907450429,6.7692,147.73,147.66,100.0]
[1719907450635,16.9208,147.75,147.67,20.0]
[1719907450830,16.9208,147.75,147.66,100.0]
[1719907451035,22.1717,147.76,147.63,140.72]
[1719907451036,6.7704,147.7,147.63,140.72]
[1719907451248,6.771,147.69,147.63,100.0]
[1719907451446,6.7714,147.68,147.63,100.0]
[1719907451638,6.771,147.69,147.63,100.0]
[1719907451834,15.4202,147.7,147.63,100.0]
[1719907452253,22.1908,147.7,147.63,100.0]
[1719907452954,22.1908,147.7,147.64,0.84503112]
[1719907453258,22.1908,147.7,147.63,100.0]
[1719907453259,6.4906,147.69,147.63,100.0]
[1719907453554,6.4906,147.69,147.6,100.0]
[1719907453757,6.4906,147.69,147.59,100.0]
[1719907453936,6.7723,147.66,147.59,100.0]
[1719907454337,6.773,147.65,147.59,100.0]
[1719907454542,6.7724,147.66,147.59,100.0]
[1719907455455,6.7728,147.65,147.59,100.0]
[1719907456453,15.8342,147.72,147.68,100.0]